Cogmind - Beta 13 @@@ ROGUE MODE // 2024.06.25 @ 13:21:00 Player: Attma Result: Destroyed by G-47 Trooper with Particle Gun Performance ------------- Evolutions (0) 0 Regions Visited (2) 400 Robots Destroyed (28) 140 Value Destroyed (586) 586 Prototype IDs (0) 0 Alien Tech Used (0) 0 Bonus (0) 0 TOTAL SCORE: 1126 Bonus ------- None Cogmind --------- Core Integrity 0/250 Matter 140/300 Energy 125/125 System Corruption 0% Temperature Cool (9) Movement Rolling (140) Ox4 Location -10/Mines Parts ------- > --- POWER (1) -------- Light Ion Engine > --- PROPULSION (2) --- Wheel > --- UTILITY (2) ------ High-capacity Storage Unit Sensor Array > --- WEAPON (2) ------- Autogun Autogun > --- INVENTORY (20) --- Ion Engine Ion Engine Light Ion Engine Light Ion Engine Aluminum Leg Aluminum Leg Compact Wheel Improved Heat Sink Cooling System Small Matter Pod (50) Particle Gun Assault Rifle Assault Rifle Light Assault Rifle Light Assault Rifle Heavy Assault Rifle Heavy Assault Rifle Autogun Hammer Peak State ------------ > --- POWER ------------ Light Ion Engine > --- PROPULSION ------- Wheel Wheel > --- UTILITY ---------- Cooling System Medium Storage Unit > --- WEAPON ----------- Autogun Autogun > --- INVENTORY -------- Aluminum Leg Aluminum Leg Compact Wheel Assault Rifle Assault Rifle Heavy Assault Rifle Heavy Assault Rifle Autogun Autogun [Rating: 11] Favorites ----------- Power Light Ion Engine Engine Light Ion Engine Propulsion Wheel Wheel Wheel Utility High-capacity Storage Unit Device Sensor Array Storage High-capacity Storage Unit Weapon Autogun Ballistic Gun Autogun Launcher Rocket Launcher Build | -11 -10 -10 ------- Run | Yrd Mat Min Slots Evolved . | . . . Power . | . . . Propulsion . | . . . Utility . | . . . Weapon . | . . . Parts Attached 17 | 5 9 3 Power 2 | 1 . 1 Engine 2 | 1 . 1 Core . | . . . Reactor . | . . . Propulsion 4 | 2 2 . Treads . | . . . Leg . | . . . Wheel 4 | 2 2 . Hover . | . . . Flight . | . . . Utility 4 | . 4 . Device 2 | . 2 . Storage 2 | . 2 . Processor . | . . . Hackware . | . . . Protection . | . . . Artifact . | . . . Weapon 7 | 2 3 2 Energy Gun . | . . . Energy Cannon . | . . . Ballistic Gun 6 | 2 3 1 Ballistic Cannon . | . . . Launcher 1 | . . 1 Special Weapon . | . . . Impact Weapon . | . . . Slashing Weapon . | . . . Piercing Weapon . | . . . Special Melee Weapon . | . . . Unidentified Prototypes . | . . . Parts Lost 5 | . 3 2 Power 1 | . 1 . Propulsion 2 | . 1 1 Utility . | . . . Weapon 2 | . 1 1 Highest Loss Streak 2 | . 2 2 To Critical Strikes . | . . . Average Slot Usage (%) 94 | . 92 98 Engine 11 | . 11 12 Wheel 26 | . 25 27 Device 12 | . 12 14 Storage 13 | . 13 14 Ballistic Gun 25 | . 28 21 Launcher 2 | . . 6 Naked Turns . | . . . Heaviest Build 51 | 7 51 51 Greatest Support 20 | 20 20 20 Greatest Overweight (x) 5 | . 5 5 Average Overweight (x) 1 | . 1 2 Largest Inventory Capacity 20 | 5 20 20 Average Capacity 17 | 5 17 20 Most Carried 20 | 5 20 20 Average Carried 15 | 3 14 19 Final Capacity 20 | 5 20 20 Final Carried 20 | 5 20 19 Class Distribution -------------------- 100% | Mutant Dominant Class ---------------- Mutant | -10/Materials Mutant | -10/Mines Resources | -11 -10 -10 ----------- Run | Yrd Mat Min Matter Collected 835 | 268 490 77 Remotely . | . . . Salvage Created 630 | 48 516 66 Parts 66 | 3 49 14 Haulers Intercepted 1 | . 1 . Recyclers Shooed 1 | . 1 . Parts Field Recycled . | . . . Retrieved Matter . | . . . Parts Self-Destructed . | . . . Prevented . | . . . Kills | -11 -10 -10 ------- Run | Yrd Mat Min Combat Hostiles Destroyed 21 | 1 14 6 Guns 16 | 1 13 2 AOE 5 | . 1 4 Classes Destroyed 7 | 1 5 1 Worker 2 | . . 2 Builder 1 | . 1 . Hauler 1 | . 1 . Operator 1 | . 1 . Watcher 2 | . 2 . Swarmer 12 | . 6 6 Grunt 9 | 1 8 . Best Kill Streak 5 | 1 3 5 Combat Bots Only 4 | 1 3 4 Max Kills in Single Turn 3 | 1 2 3 Gunslinging . | . . . Exploded 3 | . 1 3 Melee . | . . . Uniques/NPCs Destroyed . | . . . Combat | -11 -10 -10 -------- Run | Yrd Mat Min Hostile Shots Fired 107 | 4 68 35 Missed 37 | . 20 17 Damage Taken 909 | 41 582 286 Core 256 | 10 175 71 Absorbed by Shields . | . . . Regen/Repaired (Parts) 28 | . 28 . Core Remaining (%) 96 | 96 . . Volleys Fired 68 | 3 50 15 Largest 2 | 2 2 2 Hottest 56 | 40 46 56 Shots Fired 135 | 6 100 29 Gun 125 | 6 100 19 Cannon . | . . . Launcher 10 | . . 10 Special . | . . . Kinetic 125 | 6 100 19 Thermal . | . . . Explosive 10 | . . 10 Electromagnetic . | . . . Robot Hit Streak 7 | 3 7 5 Robot Miss Streak 4 | 1 4 2 Penetration Max . | . . . Secondary Targets 1 | . 1 . Max Gunslinging Chain 1 | . 1 . Shots Hit Robots 82 | 5 60 17 Core Hits 36 | 2 24 10 Critical Kills . | . . . Critical Parts Destroyed 2 | . 2 . Critical Strikes 2 | . 2 . Destroy 2 | . 2 . Melee Attacks . | . . . Impact . | . . . Slashing . | . . . Piercing . | . . . Sneak Attacks . | . . . Combat Hostiles . | . . . Follow-up Attacks . | . . . Damage Inflicted 1823 | 69 1085 669 Guns 1137 | 69 869 199 Cannons . | . . . Explosions 655 | . 185 470 Melee . | . . . Ramming 31 | . 31 . Kinetic 1137 | 69 869 199 Thermal 185 | . 185 . Explosive 470 | . . 470 Electromagnetic . | . . . Impact . | . . . Slashing . | . . . Piercing . | . . . Highest Corruption . | . . . Average Corruption . | . . . Corruption Purged . | . . . Corruption Blocked . | . . . Overload Shots . | . . . Overflow Damage 74 | . 53 21 Projectiles . | . . . Explosions 74 | . 53 21 Melee . | . . . Knockbacks 2 | . 2 . Impact 2 | . 2 . Kinetic . | . . . Secondary . | . . . Self-Inflicted Damage 179 | . 110 69 Shots 3 | . 1 2 Rammed 3 | . 3 . Targets Rammed 3 | . 3 . Kicked . | . . . Crushed . | . . . Highest Temperature 43 | . 16 43 Average Temperature 9 | . 6 13 Received Heat Transfer 288 | 24 165 99 Siege Activations . | . . . Robots Corrupted . | . . . Combat Hostiles . | . . . Parts Fried . | . . . Impact Corruptions . | . . . Robots Melted . | . . . Combat Hostiles . | . . . Parts Melted . | . . . Heat Transferred 100 | . 100 . Parts Sabotaged . | . . . Parts Stolen . | . . . Parts Stripped . | . . . Power Chain Reactions . | . . . Alert | -11 -10 -10 ------- Run | Yrd Mat Min Peak Influence 309 | 20 309 249 Initial 25 | . 13 25 Average 86 | 3 100 68 Maximum Alert Level 1 | . 1 1 Low Security (%) 92 | 100 89 95 Level 1 7 | . 10 4 Level 2 . | . . . Level 3 . | . . . Level 4 . | . . . Level 5 . | . . . High Security . | . . . Max Security . | . . . Squads Dispatched 4 | . 4 . Investigation 1 | . 1 . Extermination . | . . . Reinforcement 3 | . 3 . Assault . | . . . Garrison . | . . . Intercept . | . . . Searches Triggered . | . . . Construction Impeded . | . . . Haulers Reinforced . | . . . Active Scanning Responses . | . . . Cargo Convoy Interrupts . | . . . Stealth | -11 -10 -10 --------- Run | Yrd Mat Min Distress Signals 3 | . 3 . Communications Jammed . | . . . Distress Signals . | . . . Times Spotted 34 | 1 24 9 Peak Tracking Total 6 | 1 6 3 Tactical Retreats 1 | . . 1 Traps | -11 -10 -10 ------- Run | Yrd Mat Min Traps Triggered 1 | . 1 . Indirectly . | . . . Trap Hack Attempts . | . . . Triggered . | . . . Disarmed . | . . . Reprogrammed . | . . . Reused . | . . . Traps Extracted . | . . . Installed . | . . . Triggered . | . . . Machines | -11 -10 -10 ---------- Run | Yrd Mat Min Machines Disabled 9 | . 3 6 Max in Single Turn 3 | . 1 3 Machines Repaired . | . . . Machines Dismantled . | . . . Machines Sabotaged . | . . . Overloaded Fab Kills . | . . . Hacking | -11 -10 -10 --------- Run | Yrd Mat Min Machines Accessed 4 | . 4 . Terminals 1 | . 1 . Fabricators . | . . . Repair Stations 1 | . 1 . Recycling Units 2 | . 2 . Scanalyzers . | . . . Garrison Access . | . . . Total Hacks 11 | . 11 . Successful 6 | . 6 . Failed 5 | . 5 . Catastrophic 1 | . 1 . Database Lockouts . | . . . Manual . | . . . Terminals 1 | . 1 . Fabricators . | . . . Repair Stations 7 | . 7 . Recycling Units 3 | . 3 . Scanalyzers . | . . . Garrison Access . | . . . Terminal Hacks . | . . . Fabricator Hacks . | . . . Repair Station Hacks 3 | . 3 . Scan Component 2 | . 2 . Repair 1 | . 1 . Recycling Unit Hacks 3 | . 3 . Report Inventory 2 | . 2 . Retrieve Components 1 | . 1 . Scanalyzer . | . . . Garrison Access Hacks . | . . . Unauthorized Hacks . | . . . Terminals . | . . . Fabricators . | . . . Repair Stations . | . . . Recycling Units . | . . . Scanalyzers . | . . . Garrison Access . | . . . Data Cores Recovered . | . . . Used . | . . . Hacking Detections 2 | . 2 . Full Trace Events . | . . . Feedback Events . | . . . Feedback Blocked . | . . . Robot Schematics Acquired . | . . . Robots Built . | . . . Authchips . | . . . Time . | . . . Total Robot Build Rating . | . . . Part Schematics Acquired . | . . . Parts Built . | . . . Authchips . | . . . Time . | . . . Total Part Build Rating . | . . . Parts Repaired 1 | . 1 . Time 26 | . 26 . Parts Recycled . | . . . Recycled Matter . | . . . Retrieved Matter . | . . . Retrieved Components 10 | . 10 . Parts Scanalyzed . | . . . Part Schematics Acquired . | . . . Parts Damaged . | . . . Bothacking | -11 -10 -10 ------------ Run | Yrd Mat Min Used RIF Installer . | . . . Robots Hacked . | . . . Non-combat . | . . . Combat . | . . . Robot Hacks Applied . | . . . Relay Couplers Released . | . . . Fabnet Peak Effective % . | . . . Robots Rewired . | . . . Allies Hacked . | . . . Hacks Repelled . | . . . Allies | -11 -10 -10 -------- Run | Yrd Mat Min Total Allies . | . . . Largest Group . | . . . Highest-Rated Group . | . . . Highest-Rated Ally . | . . . Total Orders . | . . . Ally Attacks . | . . . Total Damage . | . . . Kills . | . . . Allies Corrupted . | . . . Allies Melted . | . . . Intel | -11 -10 -10 ------- Run | Yrd Mat Min Robot Analysis Total . | . . . Derelict Logs Recovered . | . . . Drone Launches . | . . . Drone Recoveries . | . . . Exploration | -11 -10 -10 ------------- Run | Yrd Mat Min Turns Passed 1844 | 85 1204 555 Spaces Moved 1444 | 88 910 446 Core 32 | 32 . . Treads . | . . . Legs . | . . . Wheels 1412 | 56 910 446 Hover . | . . . Flight . | . . . Fastest Speed 50 | 50 80 110 Average Speed 105 | 69 106 110 Slowest Speed 155 | 80 155 155 Overloaded Moves . | . . . Propulsion Burnouts . | . . . Robots Hopped . | . . . Cave-ins Triggered . | . . . Exploration Rate (%) 54 | 5 90 67 Regions Visited 2 Branch Regions 1 Pre-discovered Areas . | . . . Known Exits Taken . | . . . Unknown Exits Taken 2 | 1 1 . Scrap Searched 2 | . . 2 Spaces Dug . | . . . Terrain Destroyed 105 | . 25 80 Melee . | . . . Projectile . | . . . AOE 105 | . 25 80 Terrain Rammed . | . . . Walls Destroyed . | . . . Machines Disabled . | . . . Actions | -11 -10 -10 --------- Run | Yrd Mat Min Total 1649 | 105 1061 483 Wait 81 | . 65 16 Move 1442 | 87 909 446 Hop . | . . . Pick Up 33 | 10 21 2 Fast Attach 1 | . 1 . Attach 11 | 5 4 2 Detach . | . . . Swap 5 | . 4 1 Drop 5 | . 4 1 Fire 68 | 3 50 15 Melee . | . . . Ram 3 | . 3 . Kick . | . . . Crush . | . . . Escape Stasis . | . . . Rewire . | . . . Trap . | . . . Miscellaneous . | . . . Route ------- -11/Scrapyard -10/Materials (discovered 5 exits: [*Mat x3] / [*Min x2]) -10/Mines (discovered 2 exits: [*Mat x2]) History --------- Turn | Location | Event 2 | -11/Scrapyard | Met Revision 17 60 | -11/Scrapyard | Discovered new exit (range 8) 86 | -11/Scrapyard | Entered Materials 88 | -10/Materials | Discovered new exit (range 16) 304 | -10/Materials | Build established: Mutant 364 | -10/Materials | Core integrity fell below 50% 521 | -10/Materials | Discovered new exit (range 9) 602 | -10/Materials | Repaired Wheel 736 | -10/Materials | Discovered new exit (range 12) 932 | -10/Materials | Discovered new exit (range 16) 1177 | -10/Materials | Discovered new exit (range 3) 1290 | -10/Materials | Entered Mines 1502 | -10/Mines | Received a Rocket Launcher from a helpful Derelict 1601 | -10/Mines | Discovered new exit (range 6) 1786 | -10/Mines | Discovered new exit (range 9) 1825 | -10/Mines | Core integrity fell below 20% 1845 | -10/Mines | Destroyed by G-47 Trooper with Particle Gun Last Messages --------------- K-01 Serf collects debris. U-05 Engineer builds a Wall. U-05 Engineer lays Concrete. K-01 Serf collects debris. U-05 Engineer builds a Wall. U-05 Engineer lays Concrete. K-01 Serf collects debris. U-05 Engineer builds a Wall. U-05 Engineer lays Concrete. U-05 Engineer builds a Wall. U-05 Engineer lays Concrete. U-05 Engineer builds a Wall. K-01 Serf collects debris. EXIT=FOUND Seismic Survey Station disabled. Wheel destroyed. Destroyed Wheel. Seismic Survey Station disabled. Rocket Launcher destroyed. Destroyed Rocket Launcher. Map ----- +----------------------------------------------------+ | | | | | ????????????????????????????????? | | ????????????????????????????????? | | ?????????#??????????????????????? | | ????????? ??????????????????????? | | ????????? ??????????????????????? | | ????????" ??????????????????????? | | ?????? "????????????????????? | | ???? "???????????????????? | | ???# ???????????????????? | | ???# "?"?????????????????? | | ???# " ""????????????????? | | ???# < " """???????????????? | | ???# ???????????????? | | ??## " """ ?#???????????? | | ??#T """ #???????????? | | ???# "" #???????????? | | ???# g #???????????? | | ???# g #???????????? | | ????# ####??????????????? | | ??????# ???????????????????? | | ?????## #????????????????????? | | ?????# #????????????????????? | | ?#???## #??????????????????### | | ?# ???# @ ##???????????####??## | | ?? ???## ##????????????# #### | | ??# ???# #?????????????# ## | | ??# ??# ####???????????# | | ?## ### # #########???# | | ?# ## ##?## ## | | ?# [ ### #### | | ?# # ## #??## | | ?## ## #### ##???## | | ??###?# ### ##?????# | | ??????### #?## ##?????# | | ???????## #??## ##????# | | ??????## ##??# #????# | | ?????## ##?# ##????# | | ?????# #### ####?????# | | ????## """ #?####????????# | | ???## """ ##????????????## | | ???# """ #?????????????##### | | ???# #?????????????????? | | ???# ##????????????????? | | ???## #????????????????? | | ????## #????????????????? | | ?????## ##???????????????## | | ??????##### ##???????????????## | | ??????????## #????????????????# | +----------------------------------------------------+ Best States ------------- Heat Dissipation 47 Energy Generation 10 Energy Capacity 125 Matter Stores 300 Matter Capacity 300 Sight Range 16 Robot Scan Range 14 Terrain Scan Density 10 Evasion (%) 50 Item Schematics ----------------- None Robot Schematics ------------------ None Fabricated ------------ Nothing Alien Tech Used ----------------- None Achievements -------------- None Challenges ------------ None Game ------ Seed GuidanceReactiveShearcannon Manual? 0 Play Time 00:17:39 Cumulative 7.9 hours Start 2024.06.24 @ 23:33:38 End 2024.06.25 @ 13:21:00 Sessions 3 Manual Loads 0 Difficulty Rogue Special Mode None Game No. 10 Rogue 10 Adventurer 0 Explorer 0 Win Type - Total 0 Types 0/0/0/0/0/0/0/0/0 Lore% 9 Gallery% 12 Achievement% 12 Wizard Run 0 Options --------- Layout 2 ASCII 0 Keyboard 0 Movement Arrows Keybinds 0 Fullscreen 1 Font 16/SmallcapsGlow Map View 25x24 Zoom Use 95% Tactical HUD 0 Map Filters NONE Filters NONE Steam SD RUN: 016aa54e-599e-4c8c-9ec1-afc4ba652490